bitfinex/quotes_BTCUSD_20210402
["timestamp","ask_amount","ask_price","bid_price","bid_amount"]
[1617398076629,0.14493453,58549.0,58548.0,0.1]
[1617398077029,0.19493453,58549.0,58548.0,0.1]
[1617398077829,0.14493453,58549.0,58548.0,0.1]
[1617398079654,0.19493453,58549.0,58548.0,0.1]
[1617398079855,0.19493453,58549.0,58548.0,0.083721]
[1617398082098,0.14493453,58549.0,58548.0,0.083721]
[1617398082300,0.14493453,58549.0,58548.0,0.073721]
[1617398082502,0.19493453,58549.0,58548.0,0.073721]
[1617398082905,0.14493453,58549.0,58548.0,0.073721]
[1617398084705,0.53295953,58549.0,58548.0,0.073721]
[1617398085108,0.19493453,58549.0,58548.0,0.073721]
[1617398088133,0.58295953,58549.0,58548.0,0.073721]
[1617398089756,0.59051871,58549.0,58548.0,0.073721]
[1617398091362,0.20249371,58549.0,58548.0,0.073721]
[1617398091765,0.20249371,58549.0,58548.0,0.068721]
[1617398091964,0.15249371,58549.0,58548.0,0.068721]
[1617398092386,0.15249371,58549.0,58548.0,0.063721]
[1617398095804,0.15249371,58549.0,58548.0,0.058721]
[1617398096005,0.27431417,58549.0,58548.0,0.058721]
[1617398096226,0.2742493,58549.0,58548.0,0.058721]
[1617398096428,0.15249371,58549.0,58548.0,0.058721]
[1617398097229,0.2741702,58549.0,58548.0,0.058721]
[1617398097441,0.6621952,58549.0,58548.0,0.058721]
[1617398098641,0.7121952,58549.0,58548.0,0.058721]
[1617398099644,0.6621952,58549.0,58548.0,0.058721]
[1617398100280,0.2741702,58549.0,58548.0,0.053721]
[1617398100576,0.2541702,58549.0,58548.0,0.053721]
[1617398100778,0.6421952,58549.0,58548.0,0.053721]
[1617398101377,0.6921952,58549.0,58548.0,0.053721]
[1617398101579,0.6915952,58549.0,58548.0,0.053721]
[1617398102590,0.6421952,58549.0,58548.0,0.053721]
[1617398103587,0.52051871,58549.0,58548.0,0.053721]
[1617398105636,0.13249371,58549.0,58548.0,0.053721]
[1617398105833,0.52051871,58549.0,58548.0,0.053721]
[1617398107437,0.13249371,58549.0,58548.0,0.053721]
[1617398108242,0.52051871,58549.0,58548.0,0.053721]
[1617398109842,0.52309781,58549.0,58548.0,0.053721]
[1617398110141,0.57309781,58549.0,58548.0,0.053721]
[1617398111266,0.76717981,58549.0,58548.0,0.053721]
[1617398113289,0.90507573,58549.0,58548.0,0.053721]
[1617398113488,1.13213213,58549.0,58548.0,0.053721]
[1617398113891,0.90507573,58549.0,58548.0,0.053721]
[1617398114288,1.13213213,58549.0,58548.0,0.053721]
[1617398116710,1.27082759,58549.0,58548.0,0.053721]
[1617398116912,1.62817288,58549.0,58548.0,0.053721]
[1617398117111,1.86817288,58549.0,58548.0,0.053721]
[1617398117511,1.96817288,58549.0,58548.0,0.053721]
[1617398117713,2.73357638,58549.0,58548.0,0.053721]
[1617398119140,1.96817288,58549.0,58548.0,0.053721]
[1617398119340,3.07507138,58549.0,58548.0,0.053721]
[1617398121774,2.94829392,58549.0,58548.0,0.053721]
[1617398121974,3.19829392,58549.0,58548.0,0.053721]
[1617398122367,3.45829392,58549.0,58548.0,0.053721]
[1617398122572,3.49829392,58549.0,58548.0,0.053721]
[1617398123587,3.53829392,58549.0,58548.0,0.053721]
[1617398123787,3.62723125,58549.0,58548.0,0.053721]
[1617398123988,4.62723125,58549.0,58548.0,0.053721]
[1617398124395,4.58723125,58549.0,58548.0,0.053721]
[1617398124792,0.7654035,58548.0,58538.0,0.00066]
[1617398124997,0.165,58539.0,58538.0,0.00066]
[1617398125197,1.6910985,58539.0,58538.0,0.00066]
[1617398125394,1.7910985,58539.0,58538.0,0.00066]
[1617398125597,3.0910985,58539.0,58538.0,0.00066]
[1617398125796,3.8860985,58539.0,58538.0,0.00066]
[1617398126335,3.97503583,58539.0,58538.0,0.00066]
[1617398126945,3.97503583,58539.0,58537.0,2e-05]
[1617398127138,3.58723361,58538.0,58537.0,2e-05]
[1617398127342,3.58723361,58538.0,58536.0,0.50044]
[1617398127343,0.7654035,58537.0,58536.0,0.50044]
[1617398127539,0.7654035,58535.0,58524.0,0.00088]
[1617398127738,1.3514285,58533.0,58524.0,0.00088]
[1617398127944,0.04,58530.0,58524.0,0.00088]
[1617398128140,6.01763379,58530.0,58529.0,0.00044]
[1617398128345,0.26871876,58528.0,58526.0,0.00044]
[1617398128545,0.8054035,58526.0,58516.0,0.00066]
[1617398128746,0.42771876,58517.0,58513.0,0.05111416]
[1617398128956,0.388025,58514.0,58513.0,0.05111416]
[1617398129147,2.1201085,58514.0,58513.0,0.05311416]
[1617398129350,2.2301085,58514.0,58513.0,0.05111416]
[1617398129551,3.35404583,58514.0,58513.0,0.05111416]
[1617398129750,0.7654035,58513.0,58502.0,0.0011]
[1617398129955,0.551025,58511.0,58502.0,0.0011]
[1617398130147,1.7164285,58511.0,58502.0,0.0011]
[1617398130348,2.5164285,58511.0,58502.0,0.0011]
[1617398130550,0.8654035,58510.0,58502.0,0.0011]
[1617398130750,0.8654035,58510.0,58505.0,0.00066]
[1617398130751,1.87464356,58509.0,58505.0,0.00066]
[1617398130951,2.67464356,58509.0,58505.0,0.00066]
[1617398131144,2.86358089,58509.0,58505.0,0.00066]
[1617398131567,2.82358089,58509.0,58505.0,0.00066]
[1617398131967,2.91466356,58509.0,58505.0,0.00066]
[1617398132570,0.1,58508.0,58507.0,0.00044]
[1617398132769,2.5434285,58508.0,58507.0,0.00044]
[1617398133168,2.63236583,58508.0,58507.0,0.00044]
[1617398133574,1.03161856,58507.0,58506.0,0.001295]
[1617398133771,2.72364356,58507.0,58506.0,0.001295]
[1617398133969,2.97364356,58507.0,58506.0,0.001295]
[1617398134192,3.16258089,58507.0,58506.0,0.001295]
[1617398134796,3.16258089,58507.0,58501.0,0.00044]
[1617398134995,0.39734529,58505.0,58501.0,0.000255]
[1617398135195,1.5534285,58504.0,58501.0,0.000255]
[1617398135394,1.12274879,58503.0,58501.0,0.000255]
[1617398135593,0.35734529,58503.0,58501.0,0.000255]
[1617398135795,0.855,58502.0,58501.0,0.000255]
[1617398135994,1.66815529,58502.0,58500.0,10.002135]
[1617398136194,0.61424006,58501.0,58500.0,10.004135]
[1617398136393,2.14896385,58501.0,58500.0,10.004135]
[1617398136595,2.45196385,58501.0,58500.0,10.004135]
[1617398136825,2.54090118,58501.0,58500.0,10.004135]
[1617398137023,2.79725918,58501.0,58500.0,10.004135]
[1617398137224,2.79725918,58501.0,58500.0,10.002135]
[1617398138222,3.79725918,58501.0,58500.0,10.002135]
[1617398138625,4.33725918,58501.0,58500.0,10.002135]
[1617398138824,4.29725918,58501.0,58500.0,9.489339]
[1617398139021,4.29725918,58501.0,58500.0,9.318407]
[1617398139226,4.29725918,58501.0,58500.0,8.976543]
[1617398139440,3.79725918,58501.0,58500.0,8.976543]
[1617398139639,4.29725918,58501.0,58500.0,8.976543]
[1617398140841,7.25728493,58501.0,58500.0,8.976543]
[1617398141043,7.55728493,58501.0,58500.0,8.976543]
[1617398141643,7.55728493,58501.0,58500.0,8.854443]
[1617398141851,7.89728493,58501.0,58500.0,8.47592942]
[1617398142102,7.9076713,58501.0,58500.0,8.47592942]
[1617398142504,6.1422678,58501.0,58500.0,8.47592942]
[1617398142707,5.1492678,58501.0,58500.0,8.47592942]
[1617398143306,3.56858555,58501.0,58500.0,8.47592942]
[1617398143505,4.72958555,58501.0,58500.0,8.30499342]
[1617398143705,4.50418205,58501.0,58500.0,8.30499342]
[1617398143907,4.50418205,58501.0,58500.0,8.13404912]
[1617398144103,4.76958555,58501.0,58500.0,8.13404912]
[1617398144307,5.76958555,58501.0,58500.0,7.45026512]
[1617398144501,6.26958555,58501.0,58500.0,7.45026512]
[1617398144704,6.50958555,58501.0,58500.0,6.76145612]
[1617398145101,6.50958555,58501.0,58500.0,6.07764712]
[1617398145307,6.50958555,58501.0,58500.0,5.55479012]
[1617398146504,6.50958555,58501.0,58500.0,5.11339012]
[1617398146905,6.50958555,58501.0,58500.0,5.10339012]
[1617398147105,5.50958555,58501.0,58500.0,5.10339012]
[1617398147321,6.00958555,58501.0,58500.0,5.10359012]
[1617398147523,5.24418205,58501.0,58500.0,5.10359012]
[1617398147927,5.24418205,58501.0,58500.0,5.09859012]
[1617398148122,5.74418205,58501.0,58500.0,5.09859012]
[1617398148724,7.96500153,58501.0,58500.0,5.09859012]
[1617398148925,8.73040503,58501.0,58500.0,5.09859012]
[1617398150146,8.23040503,58501.0,58500.0,5.09859012]
[1617398150951,8.23040503,58501.0,58500.0,4.30139012]
[1617398151147,8.73040503,58501.0,58500.0,4.30139012]
[1617398151550,8.72540503,58501.0,58500.0,4.30139012]
[1617398151748,7.96000153,58501.0,58500.0,4.30139012]
[1617398152147,7.95500153,58501.0,58500.0,4.30139012]
[1617398152353,7.45500153,58501.0,58500.0,4.30139012]
[1617398153179,8.32040503,58501.0,58500.0,4.30139012]
[1617398153376,8.28040503,58501.0,58500.0,4.30139012]
[1617398153576,8.82040503,58501.0,58500.0,4.30139012]
[1617398153780,5.59958555,58501.0,58500.0,4.30139012]
[1617398153980,5.86256717,58501.0,58500.0,4.30139012]
[1617398154376,5.09716367,58501.0,58500.0,4.30139012]
[1617398154780,5.59716367,58501.0,58500.0,4.30139012]
[1617398154980,6.36256717,58501.0,58500.0,4.30139012]
[1617398155206,6.36256717,58501.0,58500.0,4.29639012]
[1617398156007,5.59716367,58501.0,58500.0,4.29639012]
[1617398156208,6.36256717,58501.0,58500.0,4.29639012]
[1617398156706,5.59716367,58501.0,58500.0,4.27639012]
[1617398157101,6.36256717,58501.0,58500.0,4.27639012]
[1617398157299,5.59716367,58501.0,58500.0,4.27639012]
[1617398157502,6.36256717,58501.0,58500.0,4.27639012]
[1617398157744,6.32256717,58501.0,58500.0,4.27639012]
[1617398157944,6.36256717,58501.0,58500.0,4.27639012]
[1617398158347,5.59716367,58501.0,58500.0,4.27639012]
[1617398159146,6.31322458,58501.0,58500.0,3.763489]
[1617398159545,6.31322458,58501.0,58500.0,3.421555]
[1617398159748,6.81322458,58501.0,58500.0,3.421555]
[1617398159951,6.81322458,58501.0,58500.0,3.079621]
[1617398160348,6.81322458,58501.0,58500.0,2.737677]
[1617398162351,6.04782108,58501.0,58500.0,2.737677]
[1617398162974,5.82160602,58501.0,58500.0,2.72975706]
[1617398163173,5.78157199,58501.0,58500.0,2.72975706]
[1617398163374,5.36157199,58501.0,58500.0,2.72975706]
[1617398163774,5.29160602,58501.0,58500.0,2.72975706]
[1617398164175,4.29160602,58501.0,58500.0,2.72975706]
[1617398164377,5.40282459,58501.0,58500.0,2.72975706]
[1617398164776,6.26822809,58501.0,58500.0,2.72975706]
[1617398164976,6.80822809,58501.0,58500.0,2.72975706]
[1617398165176,6.64282459,58501.0,58500.0,2.72975706]
[1617398165378,7.40822809,58501.0,58500.0,2.72975706]
[1617398165597,7.40822809,58501.0,58500.0,1.72895706]
[1617398165800,6.94282459,58501.0,58500.0,0.72815706]
[1617398165997,7.33084959,58501.0,58500.0,0.72815706]
[1617398166201,7.03084959,58501.0,58500.0,0.72815706]
[1617398166599,7.79625309,58501.0,58500.0,0.72815706]
[1617398166999,7.03084959,58501.0,58500.0,0.72815706]
[1617398167199,7.79625309,58501.0,58500.0,0.72815706]
[1617398167601,7.79625309,58501.0,58500.0,0.6994718]
[1617398168008,0.96201038,58500.0,58498.0,1.18e-05]
[1617398168252,5.34111274,58499.0,58498.0,1.18e-05]
[1617398168438,5.64111274,58499.0,58498.0,1.18e-05]
[1617398168637,5.73005007,58499.0,58498.0,1.18e-05]
[1617398168844,0.7654035,58498.0,58494.0,9.18e-05]
[1617398169040,0.6488525,58495.0,58494.0,9.18e-05]
[1617398169241,3.90419779,58495.0,58494.0,9.18e-05]
[1617398169443,4.78221278,58495.0,58494.0,9.18e-05]
[1617398169638,4.76138528,58495.0,58494.0,9.18e-05]
[1617398169839,4.85032261,58495.0,58494.0,9.18e-05]
[1617398170439,5.19225961,58495.0,58494.0,9.18e-05]
[1617398171049,5.95766311,58495.0,58494.0,9.18e-05]
[1617398171253,5.19225961,58495.0,58494.0,9.18e-05]
[1617398171520,5.95766311,58495.0,58494.0,9.18e-05]
[1617398171717,5.19225961,58495.0,58494.0,9.18e-05]
[1617398171919,5.93777245,58495.0,58492.0,0.0001718]
[1617398172122,1.045025,58493.0,58492.0,0.0001718]
[1617398172328,2.84237029,58493.0,58492.0,0.0001718]
[1617398172522,3.27758511,58493.0,58492.0,0.0001718]
[1617398172719,3.51758511,58493.0,58492.0,0.0001718]
[1617398173119,4.01758511,58493.0,58492.0,0.0001718]
[1617398173319,4.81758511,58493.0,58492.0,0.0001718]
[1617398173519,4.83179608,58493.0,58492.0,0.0001718]
[1617398173921,0.1,58492.0,58491.0,0.0098318]
[1617398174127,1.61387737,58492.0,58491.0,0.0098318]
[1617398174318,2.2028147,58492.0,58491.0,0.0098318]
[1617398174718,2.19684877,58492.0,58491.0,0.0098318]
[1617398175720,2.19684877,58492.0,58471.0,0.00066]
[1617398176128,0.388025,58488.0,58464.0,0.0116118]
[1617398176328,0.128228,58485.0,58469.0,0.2345965]
[1617398176525,0.0042,58483.0,58469.0,0.2345965]
[1617398176728,0.39103281,58482.0,58469.0,0.2345965]
[1617398176924,0.25,58481.0,58469.0,0.2345965]
[1617398177125,0.39103281,58480.0,58469.0,0.2345965]
[1617398177327,0.1,58479.0,58469.0,0.2345965]
[1617398177525,0.1,58477.0,58469.0,0.2345965]
[1617398177725,0.1,58475.0,58469.0,0.2345965]
[1617398177927,0.256457,58473.0,58469.0,0.2345965]
[1617398178125,0.388025,58472.0,58469.0,0.2065965]
[1617398178322,0.44734529,58471.0,58469.0,0.2065965]
[1617398178526,0.1,58471.0,58469.0,0.2065965]
[1617398178733,0.15,58471.0,58469.0,0.2065965]
[1617398178935,0.1,58471.0,58469.0,0.2065965]
[1617398179336,0.256457,58471.0,58469.0,0.2065965]
[1617398181130,0.306457,58471.0,58469.0,0.2065965]
[1617398181555,0.09923798,58470.0,58469.0,0.2065965]
[1617398182753,0.05,58470.0,58469.0,0.2065965]
[1617398182955,0.155,58477.0,58469.0,0.2065965]
[1617398183155,0.2108,58477.0,58469.0,0.2065965]
[1617398183355,0.1558,58477.0,58469.0,0.2065965]
[1617398183753,0.1458,58477.0,58469.0,0.2065965]
[1617398183974,0.256457,58474.0,58469.0,0.2065965]
[1617398184777,0.388025,58473.0,58469.0,0.2065965]
[1617398184978,0.1,58472.0,58469.0,0.2065965]
[1617398185176,0.09,58472.0,58469.0,0.2065965]
[1617398185377,0.09,58472.0,58470.0,0.388025]
[1617398185576,0.14,58472.0,58471.0,0.2065965]
[1617398185780,0.14,58472.0,58471.0,0.4109265]
[1617398185979,0.09,58472.0,58471.0,0.2065965]
[1617398186178,0.256457,58474.0,58471.0,0.2065965]
[1617398186477,0.388025,58473.0,58465.0,0.2065965]
[1617398186721,0.1246595,58472.0,58465.0,0.2085965]
[1617398186916,0.006,58472.0,58466.0,0.2065965]
[1617398187123,0.256472,58471.0,58466.0,0.2085965]
[1617398187319,0.256472,58471.0,58467.0,0.2065965]
[1617398187522,0.388025,58470.0,58467.0,0.2085965]
[1617398187715,0.388025,58470.0,58468.0,0.2065965]
[1617398187919,0.1,58469.0,58468.0,0.2085965]
[1617398188721,0.1,58469.0,58468.0,0.1835965]
[1617398188919,0.006,58472.0,58468.0,0.1835965]
[1617398189122,0.006,58472.0,58469.0,0.1815965]
[1617398189334,0.004,58475.0,58469.0,0.1815965]
[1617398189537,0.0044,58475.0,58469.0,0.1815965]
[1617398189737,0.37092338,58474.0,58469.0,0.1815965]
[1617398189933,0.1,58473.0,58469.0,0.1815965]
[1617398190135,0.388025,58472.0,58469.0,0.1815965]
[1617398190335,0.1,58471.0,58469.0,0.1815965]
[1617398190534,0.388195,58470.0,58469.0,0.1815965]
[1617398190934,0.1,58469.0,58465.0,0.1815965]
[1617398191137,0.104,58471.0,58465.0,0.1835965]
[1617398191336,0.104,58471.0,58466.0,0.1815965]
[1617398191734,0.104,58471.0,58466.0,0.1785965]
[1617398191959,0.104,58471.0,58467.0,0.1765965]
[1617398192159,0.00756907,58474.0,58467.0,0.1785965]
[1617398192362,0.388195,58473.0,58468.0,0.1715965]
[1617398192559,0.1,58472.0,58468.0,0.1735965]
[1617398192760,0.388195,58471.0,58469.0,0.1715965]
[1617398192959,0.388195,58470.0,58469.0,0.1665965]
[1617398193359,0.388195,58470.0,58464.0,0.1674765]
[1617398193557,0.388195,58470.0,58465.0,0.1615965]
[1617398193764,0.1,58469.0,58465.0,0.1615965]
[1617398193964,0.1,58469.0,58465.0,0.1635965]
[1617398194163,0.05756907,58474.0,58466.0,0.1615965]
[1617398194362,0.388195,58470.0,58466.0,0.1615965]
[1617398194584,0.388195,58467.0,58466.0,0.1635965]
[1617398194783,0.488195,58467.0,58466.0,0.1635965]
[1617398195382,0.06059339,58467.0,58466.0,0.1635965]
[1617398195784,0.14170327,58477.0,58466.0,0.1635965]
[1617398195986,0.388195,58476.0,58467.0,0.1615965]
[1617398196186,0.086936,58472.0,58467.0,0.1635965]
[1617398196383,0.388195,58468.0,58467.0,0.002]
[1617398196585,0.388195,58468.0,58467.0,0.1635965]
[1617398197210,0.488195,58468.0,58467.0,0.1635965]
[1617398197610,0.488195,58468.0,58467.0,0.002]
[1617398197810,0.488195,58468.0,58467.0,0.1635965]
[1617398198211,0.488195,58468.0,58467.0,0.18368875]
[1617398198813,0.1,58474.0,58467.0,0.18368875]
[1617398199012,0.388195,58470.0,58467.0,0.02209225]
[1617398199212,0.1,58469.0,58468.0,0.02009227]
[1617398199413,0.739,58476.0,58468.0,0.02209227]
[1617398199612,0.388195,58472.0,58468.0,0.02209227]
[1617398199836,0.388195,58469.0,58468.0,0.002]
[1617398200636,0.388195,58469.0,58468.0,0.02209242]
[1617398201036,0.39576453,58469.0,58468.0,0.02209242]
[1617398201236,0.49576453,58469.0,58468.0,0.02209242]
[1617398201540,0.49576453,58469.0,58468.0,0.18368892]
[1617398201730,0.39576453,58469.0,58468.0,0.02209242]
[1617398202975,0.65876453,58469.0,58468.0,0.02209242]
[1617398203174,0.70876453,58469.0,58468.0,0.02209242]
[1617398203572,0.54576453,58469.0,58468.0,0.02209242]
[1617398203772,0.39576453,58469.0,58468.0,0.02209242]
[1617398204170,0.39576453,58469.0,58468.0,0.18368892]
[1617398204376,0.39576453,58469.0,58468.0,0.44014092]
[1617398204574,3.15967448,58480.0,58468.0,0.27854442]
[1617398204776,0.004,58477.0,58469.0,0.02009198]
[1617398204973,0.388195,58473.0,58469.0,0.02009198]
[1617398205181,0.388195,58470.0,58469.0,0.01509198]
[1617398205579,0.388195,58470.0,58465.0,0.02009194]
[1617398205785,0.388195,58466.0,58465.0,0.002]
[1617398206178,0.488195,58466.0,58465.0,0.002]
[1617398206577,0.388195,58466.0,58465.0,0.0220925]
[1617398206781,0.488195,58466.0,58465.0,0.0220925]
[1617398207181,0.388195,58466.0,58465.0,0.0220925]
[1617398207379,0.573195,58466.0,58465.0,0.0220925]
[1617398208006,0.573195,58466.0,58465.0,0.0200925]
[1617398208206,0.673195,58466.0,58465.0,0.0050925]
[1617398210005,0.573195,58466.0,58465.0,0.0050925]
[1617398210207,0.673195,58466.0,58465.0,0.0050925]
[1617398210426,0.673195,58466.0,58461.0,0.0283925]
[1617398210628,0.673195,58466.0,58461.0,0.0303925]
[1617398210825,0.23,58465.0,58461.0,0.0303925]
[1617398211024,0.388195,58462.0,58461.0,0.0303925]
[1617398211222,0.388195,58462.0,58461.0,0.0253925]
[1617398211427,0.388195,58462.0,58461.0,0.0203925]
[1617398211622,0.543195,58462.0,58461.0,0.0203925]
[1617398213356,0.543195,58462.0,58461.0,0.0103925]
[1617398213556,0.643195,58462.0,58461.0,0.0103925]
[1617398213761,0.543195,58462.0,58461.0,0.0103925]
[1617398214556,0.538195,58462.0,58461.0,0.0103925]
[1617398214755,0.533195,58462.0,58461.0,0.0103925]
[1617398215986,0.533195,58462.0,58461.0,0.0083925]
[1617398216189,0.633195,58462.0,58461.0,0.0083925]
[1617398216384,0.683195,58462.0,58461.0,0.0083925]
[1617398217017,0.9354093,58462.0,58461.0,0.0083925]
[1617398217615,0.9990893,58462.0,58461.0,0.0083925]
[1617398218017,0.746875,58462.0,58461.0,0.0083925]
[1617398218225,0.9990893,58462.0,58461.0,0.0083925]
[1617398218421,0.746875,58462.0,58461.0,0.0083925]
[1617398218824,1.5852785,58462.0,58461.0,0.0083925]
[1617398219023,1.7442785,58462.0,58461.0,0.0083925]
[1617398219224,1.145875,58462.0,58461.0,0.0083925]
[1617398219423,0.88492822,58462.0,58461.0,0.0083925]
[1617398219620,0.899092,58462.0,58461.0,0.0083925]
[1617398220020,1.990871,58462.0,58461.0,0.0083925]
[1617398220221,1.1524675,58462.0,58461.0,0.0083925]
[1617398220623,1.983371,58462.0,58461.0,0.0083925]
[1617398220826,2.1449675,58462.0,58461.0,0.0083925]
[1617398221032,2.233685,58462.0,58461.0,0.0083925]
[1617398221227,2.283685,58462.0,58461.0,0.0083925]
[1617398221428,2.14531,58462.0,58461.0,0.0083925]
[1617398222232,1.44259,58462.0,58461.0,0.0083925]
[1617398223233,1.44259,58462.0,58211.0,0.12984919]
[1617398223463,0.0318075,58450.0,58439.0,0.00066]
[1617398223663,0.0318075,58450.0,58444.0,0.00088]
[1617398223859,0.0318075,58450.0,58449.0,0.00288]
[1617398225060,0.0268075,58450.0,58449.0,0.00288]
[1617398225460,0.4150245,58450.0,58449.0,0.00288]
[1617398226291,0.4150245,58450.0,58449.0,0.02297678]
[1617398227090,0.42259649,58450.0,58449.0,0.02297678]
[1617398227894,0.67597199,58450.0,58449.0,0.02297678]
[1617398228093,0.42259649,58450.0,58449.0,0.02297678]
[1617398228489,0.42259649,58450.0,58449.0,0.01997678]
[1617398229910,0.42259649,58450.0,58449.0,0.02038764]
[1617398230312,0.03437949,58450.0,58449.0,0.02038764]
[1617398230910,0.02937949,58450.0,58449.0,0.02038764]
[1617398231963,0.02437949,58450.0,58449.0,0.02038764]
[1617398232565,0.02437949,58450.0,58449.0,0.00220543]
[1617398232967,0.41259649,58450.0,58449.0,0.00220543]
[1617398233171,0.41259649,58450.0,58449.0,0.002]
[1617398233364,0.41259649,58450.0,58440.0,0.27521843]
[1617398233571,0.28096949,58450.0,58440.0,0.27721843]
[1617398233964,0.27096949,58450.0,58440.0,0.27721843]
[1617398234772,0.01437949,58450.0,58440.0,0.27721843]
[1617398235370,0.01437949,58450.0,58441.0,0.1]
[1617398235769,0.01437949,58450.0,58442.0,0.02010163]
[1617398235969,0.01437949,58450.0,58442.0,0.02210163]
[1617398236169,0.01437949,58450.0,58442.0,0.002]
[1617398236372,0.01437949,58450.0,58443.0,0.02010189]
[1617398236590,0.01437949,58450.0,58443.0,0.02210189]
[1617398236991,0.01437949,58450.0,58444.0,0.02010209]
[1617398237200,0.155,58445.0,58444.0,0.002]
[1617398237598,0.155,58445.0,58440.0,0.27221843]
[1617398237796,0.16,58449.0,58440.0,0.27421843]
[1617398237994,0.01437949,58450.0,58440.0,0.27421843]
[1617398238192,0.27097249,58450.0,58440.0,0.27421843]
[1617398238399,0.26597249,58450.0,58440.0,0.27421843]
[1617398239414,0.1,58454.0,58440.0,0.27421843]
[1617398239611,0.1,58452.0,58440.0,0.43581493]
[1617398239808,0.388217,58451.0,58440.0,0.27421843]
[1617398240007,0.388217,58451.0,58440.0,0.43581493]
[1617398240207,0.645,58458.0,58441.0,0.1]
[1617398240413,0.342119,58455.0,58441.0,0.1]
[1617398240609,0.388217,58454.0,58441.0,0.2635965]
[1617398241013,0.388217,58454.0,58442.0,0.1615965]
[1617398241214,0.388217,58454.0,58439.0,0.22108323]
[1617398241410,0.1,58453.0,58439.0,0.22108323]
[1617398241611,0.1,58453.0,58440.0,0.18]
[1617398241856,0.1,58453.0,58439.0,0.21808323]
[1617398242056,0.1,58453.0,58440.0,0.260564]
[1617398242254,0.1,58453.0,58441.0,0.388217]
[1617398242451,0.1,58453.0,58442.0,0.185]
[1617398242650,0.31927115,58456.0,58442.0,0.185]
[1617398242651,0.1,58455.0,58443.0,0.388217]
[1617398242853,0.1,58455.0,58443.0,0.390217]
[1617398243052,0.1,58455.0,58443.0,0.002]
[1617398243852,0.1,58455.0,58443.0,0.258561]
[1617398245070,0.1,58455.0,58444.0,0.388217]
[1617398245272,0.31727115,58456.0,58445.0,0.165]
[1617398245469,0.31727115,58456.0,58445.0,0.167]
[1617398245665,0.31727115,58456.0,58445.0,0.171]
[1617398246920,0.31727115,58456.0,58447.0,0.06840383]
[1617398247137,0.31727115,58456.0,58449.0,0.256515]
[1617398247328,0.31727115,58456.0,58450.0,0.6433933]
[1617398247526,0.31727115,58456.0,58450.0,0.8733933]
[1617398247729,0.31227115,58456.0,58450.0,0.8633933]
[1617398247922,0.31227115,58456.0,58454.0,0.388217]
[1617398248127,0.31227115,58456.0,58455.0,0.388247]
[1617398248319,0.31227115,58456.0,58455.0,0.538247]
[1617398249117,0.30227115,58456.0,58455.0,0.538247]
[1617398249320,1.2421,58475.0,58455.0,0.538247]
[1617398249525,0.002,58473.0,58458.0,0.004]
[1617398249724,0.002,58479.0,58458.0,0.004]
[1617398249923,0.102,58479.0,58460.0,0.06838592]
[1617398250121,0.30261891,58480.0,58460.0,0.50042592]
[1617398250319,0.30261891,58480.0,58461.0,0.14800781]
[1617398250527,0.30261891,58480.0,58465.0,0.256433]
[1617398252124,0.28261891,58480.0,58465.0,0.256433]
[1617398252347,0.27761891,58480.0,58466.0,0.011]
[1617398252549,0.27761891,58480.0,58466.0,0.45767498]
[1617398252746,0.27761891,58480.0,58467.0,0.06837514]
[1617398252941,0.27761891,58480.0,58467.0,0.05837514]
[1617398253148,0.27761891,58480.0,58468.0,0.01]
[1617398253749,0.27761891,58480.0,58469.0,0.00300781]
[1617398253955,0.427591,58492.0,58471.0,0.00300781]
[1617398254157,0.70516868,58492.0,58471.0,0.16489918]
[1617398254355,0.256377,58491.0,58473.0,0.00300781]
[1617398254557,0.69516868,58492.0,58475.0,0.00300781]
[1617398254558,0.27757768,58492.0,58475.0,0.00300781]
[1617398254755,0.27757768,58492.0,58478.0,0.00300781]
[1617398254970,0.27757768,58492.0,58480.0,0.14910694]
[1617398255175,0.27757768,58492.0,58481.0,0.411247]
[1617398255377,0.00099489,58505.0,58491.0,0.2505195]
[1617398255575,0.00099489,58505.0,58493.0,0.0044]
[1617398255773,0.25728425,58507.0,58494.0,0.022]
[1617398255971,0.256289,58507.0,58494.0,0.022]
[1617398256372,0.251289,58507.0,58498.0,0.13416415]
[1617398256774,0.246289,58507.0,58495.0,0.155]
[1617398256971,0.246289,58507.0,58496.0,0.023]
[1617398257366,0.346289,58507.0,58497.0,0.16]
[1617398257593,0.346289,58507.0,58498.0,0.023]
[1617398257794,0.246289,58507.0,58498.0,0.013]
[1617398257997,0.246289,58507.0,58499.0,0.01]
[1617398258394,0.246289,58507.0,58500.0,0.016]
[1617398258593,0.388247,58506.0,58500.0,0.016]
[1617398259394,0.388076,58505.0,58500.0,0.016]
[1617398259791,0.388076,58505.0,58493.0,0.015]
[1617398259993,0.256289,58507.0,58495.0,0.00300781]
[1617398260211,0.256289,58507.0,58496.0,0.388076]
[1617398260415,0.256289,58507.0,58497.0,0.016]
[1617398260614,0.256289,58507.0,58498.0,0.388076]
[1617398261017,0.256289,58507.0,58499.0,0.015]
[1617398261216,0.356289,58507.0,58499.0,0.015]
[1617398261862,0.256289,58507.0,58495.0,0.00300781]
[1617398262065,0.256289,58507.0,58496.0,0.388076]
[1617398262263,0.256289,58507.0,58497.0,0.01900781]
[1617398262472,0.3060309,58538.0,58499.0,0.25413862]
[1617398262473,0.256231,58516.0,58499.0,0.25413862]
[1617398262665,0.256231,58516.0,58501.0,0.00300781]
[1617398262864,0.256231,58516.0,58499.0,0.48413862]
[1617398262865,0.256231,58516.0,58503.0,0.07800781]
[1617398263066,0.256231,58516.0,58503.0,0.45752]
[1617398263257,0.256231,58516.0,58503.0,0.51752]
[1617398263458,0.256231,58516.0,58504.0,0.00300781]
[1617398263660,0.256231,58516.0,58505.0,0.533076]
[1617398263860,0.256231,58516.0,58506.0,0.25413862]
[1617398264061,0.256231,58516.0,58514.0,0.36591527]
[1617398264269,0.427248,58525.0,58515.0,0.40913862]
[1617398264471,0.27979188,58522.0,58515.0,1.01195862]
[1617398264666,0.27979188,58522.0,58516.0,0.19]
[1617398264867,0.27979188,58522.0,58517.0,0.093]
[1617398265065,0.27979188,58522.0,58516.0,0.13657609]
[1617398265261,0.388076,58521.0,58516.0,0.13657609]
[1617398265673,0.1,58520.0,58514.0,0.30249136]
[1617398265872,0.388076,58519.0,58514.0,0.30249136]
[1617398266072,0.256188,58517.0,58514.0,0.30249136]
[1617398266271,0.256188,58517.0,58515.0,0.092]
[1617398267268,0.256188,58517.0,58514.0,0.38249136]